bitfinex/quotes_BTCUSD_20251024
["timestamp","ask_amount","ask_price","bid_price","bid_amount"]
[1761309728509,0.5467387,111370.0,111360.0,0.18041973]
[1761309728722,0.17956545,111380.0,111370.0,0.17958157]
[1761309728941,0.72514291,111380.0,111370.0,0.19753972]
[1761309729160,0.72514291,111380.0,111370.0,0.17958157]
[1761309729375,0.72514291,111380.0,111370.0,0.19753972]
[1761309729798,0.72514291,111380.0,111370.0,0.17958157]
[1761309731037,0.72514291,111380.0,111360.0,0.18041973]
[1761309731038,0.72714291,111380.0,111360.0,0.18041973]
[1761309731237,0.72714291,111380.0,111370.0,0.17958157]
[1761309732180,0.20729746,111380.0,111370.0,0.17958157]
[1761309732337,0.20730359,111380.0,111370.0,0.19753972]
[1761309732711,0.18796,111380.0,111370.0,0.19753972]
[1761309732931,0.18792,111380.0,111370.0,0.19753972]
[1761309733138,0.18788,111380.0,111370.0,0.19753972]
[1761309733573,0.18784,111380.0,111370.0,0.19753972]
[1761309734055,0.18584,111380.0,111370.0,0.19753972]
[1761309734273,0.34,111390.0,111380.0,0.17956545]
[1761309734480,0.54514034,111390.0,111380.0,0.17956545]
[1761309734691,0.35934034,111390.0,111380.0,0.17956545]
[1761309735644,0.01934034,111390.0,111380.0,0.17956545]
[1761309735856,0.70533577,111400.0,111390.0,0.17954933]
[1761309736069,0.81448784,111400.0,111390.0,0.17954933]
[1761309736510,0.0240716,111420.0,111400.0,0.1795187]
[1761309736723,0.38917338,111420.0,111410.0,0.19746879]
[1761309736939,0.72442492,111420.0,111410.0,0.17951709]
[1761309737158,0.38442492,111420.0,111410.0,0.17951709]
[1761309738072,0.72742492,111420.0,111390.0,0.17954933]
[1761309738294,1.03408374,111420.0,111400.0,0.17953321]
[1761309738513,0.70810098,111420.0,111410.0,0.17951709]
[1761309738714,0.70910098,111420.0,111410.0,0.17951709]
[1761309738933,0.5266,111420.0,111410.0,0.17951709]
[1761309739354,0.002,111420.0,111410.0,0.17951709]
[1761309739556,0.002,111420.0,111410.0,0.19723808]
[1761309740511,0.52536,111430.0,111420.0,0.17950098]
[1761309741342,0.52536,111430.0,111410.0,0.17951704]
[1761309741343,0.70484487,111430.0,111410.0,0.17951704]
[1761309741531,0.17950098,111420.0,111400.0,0.20647534]
[1761309741765,0.17950098,111420.0,111410.0,0.17951709]
[1761309741983,1.23958041,111430.0,111410.0,0.17951709]
[1761309741984,0.52148487,111430.0,111410.0,0.17951709]
[1761309742202,0.52148487,111430.0,111420.0,0.17950098]
[1761309742395,0.52148487,111430.0,111420.0,0.19745107]
[1761309742628,0.70656487,111430.0,111420.0,0.19745107]
[1761309743173,0.002,111430.0,111420.0,0.19745107]
[1761309743375,0.18504,111430.0,111420.0,0.19745107]
[1761309743576,0.52851427,111440.0,111430.0,0.17948487]
[1761309743779,0.71369994,111440.0,111430.0,0.17948487]
[1761309744192,0.71365994,111440.0,111430.0,0.17948487]
[1761309744376,0.34014567,111440.0,111430.0,0.19743335]
[1761309744578,0.18506567,111440.0,111430.0,0.19743335]
[1761309744783,0.18506567,111440.0,111430.0,0.17948487]
[1761309745025,0.18606567,111440.0,111430.0,0.20642112]
[1761309745266,0.18906567,111440.0,111430.0,0.20642112]
[1761309745480,0.18606567,111440.0,111430.0,0.20642112]
[1761309745706,0.18506567,111440.0,111430.0,0.20642112]
[1761309745907,0.36453444,111440.0,111430.0,0.02693625]
[1761309746109,0.18506567,111440.0,111430.0,0.20642112]
[1761309746318,0.18506567,111440.0,111430.0,0.17948487]
[1761309747154,0.36453444,111440.0,111430.0,0.17948487]
[1761309747364,0.18506567,111440.0,111430.0,0.17948487]
[1761309747567,0.18606567,111440.0,111430.0,0.17948487]
[1761309747797,0.36553444,111440.0,111430.0,0.17948487]
[1761309748360,0.18606567,111440.0,111430.0,0.17948487]
[1761309749075,0.36553444,111440.0,111420.0,0.2064364]
[1761309749302,0.36553444,111440.0,111430.0,0.17948487]
[1761309750124,0.18606567,111440.0,111430.0,0.17948487]
[1761309752495,0.00114567,111440.0,111430.0,0.17948487]
[1761309752734,0.18554567,111440.0,111430.0,0.19743335]
[1761309755288,0.18554567,111440.0,111430.0,0.19743335]
[1761309757822,0.36501444,111440.0,111430.0,0.01794848]
[1761309758000,0.17948487,111430.0,111410.0,0.17951709]
[1761309758206,0.18384,111420.0,111410.0,0.17951709]
[1761309758415,0.36334098,111420.0,111400.0,0.20647406]
[1761309758614,0.17951709,111410.0,111400.0,0.17953299]
[1761309759620,0.17951709,111410.0,111400.0,0.18153299]
[1761309759978,0.45315999,111420.0,111400.0,0.18153299]
[1761309760454,0.79315999,111420.0,111410.0,0.001]
[1761309760834,0.79315999,111420.0,111400.0,0.18153306]
[1761309761436,0.79315999,111420.0,111410.0,0.17951709]
[1761309761609,0.79315999,111420.0,111400.0,0.17953306]
[1761309761794,0.17951709,111410.0,111400.0,0.17953306]
[1761309762835,0.18368,111410.0,111400.0,0.19748638]
[1761309765745,0.5195016,111420.0,111410.0,0.17951709]
[1761309765932,0.70596432,111420.0,111410.0,0.17951709]
[1761309766227,0.70596432,111420.0,111400.0,0.17953306]
[1761309766453,0.17951709,111410.0,111400.0,0.1961448]
[1761309766716,0.17951709,111410.0,111400.0,0.17953306]
[1761309767058,0.6866616,111420.0,111400.0,0.17953306]
[1761309767418,0.70597343,111420.0,111400.0,0.19693605]
[1761309767824,0.70597343,111420.0,111410.0,0.17951709]
[1761309768008,0.52635183,111420.0,111410.0,0.17951709]
[1761309768234,0.70685281,111420.0,111410.0,0.17951709]
[1761309768436,0.70585281,111420.0,111410.0,0.17951709]
[1761309769972,0.70585281,111420.0,111400.0,0.17953306]
[1761309770166,0.17951709,111410.0,111400.0,0.1952337]
[1761309770783,0.68754098,111420.0,111400.0,0.1952337]
[1761309770983,0.70585424,111420.0,111400.0,0.1952337]
[1761309772185,0.17951709,111410.0,111400.0,0.01570049]
[1761309772385,0.17951709,111410.0,111400.0,0.17953321]
[1761309772608,0.68654098,111420.0,111400.0,0.17953321]
[1761309772810,0.17951709,111410.0,111400.0,0.17953321]
[1761309773429,0.1988271,111410.0,111400.0,0.17953321]
[1761309774379,0.17951709,111410.0,111400.0,0.17953321]
[1761309778617,0.36191709,111410.0,111400.0,0.17953321]
[1761309778856,0.1824,111410.0,111400.0,0.17953321]
[1761309779173,0.36191709,111410.0,111400.0,0.17953321]
[1761309779385,0.1824,111410.0,111400.0,0.17953321]
[1761309779608,0.36191709,111410.0,111400.0,0.19300853]
[1761309779815,0.50342098,111420.0,111410.0,0.17951709]
[1761309780019,0.70496791,111420.0,111400.0,0.17953321]
[1761309780232,0.70496791,111420.0,111410.0,0.17951709]
[1761309781162,0.70496791,111420.0,111400.0,0.17953321]
[1761309781395,0.17951709,111410.0,111400.0,0.17953271]
[1761309781604,0.68566098,111420.0,111400.0,0.17953271]
[1761309781822,0.17951709,111410.0,111400.0,0.17953271]
[1761309782044,0.68666098,111420.0,111400.0,0.17953271]
[1761309782267,0.17951709,111410.0,111400.0,0.17953321]
[1761309782895,0.68566098,111420.0,111410.0,0.17951709]
[1761309783099,0.68550098,111420.0,111410.0,0.17951709]
[1761309783307,0.70481449,111420.0,111410.0,0.17951709]
[1761309783512,0.70481449,111420.0,111400.0,0.17953321]
[1761309783717,0.70481449,111420.0,111400.0,0.19748653]
[1761309783930,0.70481449,111420.0,111410.0,0.17951709]
[1761309784099,0.70482097,111420.0,111410.0,0.17951709]
[1761309784398,0.70582097,111420.0,111410.0,0.19746879]
[1761309784740,0.70466097,111420.0,111410.0,0.17951709]
[1761309785124,0.20119999,111420.0,111410.0,0.17951709]
[1761309785597,0.68698091,111420.0,111410.0,0.17951709]
[1761309785798,0.68698091,111420.0,111400.0,0.17953321]
[1761309786014,0.68698091,111420.0,111410.0,0.17951709]
[1761309786806,0.50847993,111420.0,111410.0,0.17951709]
[1761309786948,0.68798091,111420.0,111410.0,0.17951709]
[1761309787151,0.20219999,111420.0,111410.0,0.17951709]
[1761309787404,0.02031999,111420.0,111410.0,0.17951709]
[1761309787614,0.001,111420.0,111410.0,0.48579703]
[1761309788100,0.001,111420.0,111410.0,0.88189598]
[1761309788507,0.1796148,111440.0,111430.0,0.17948487]
[1761309788710,0.19896698,111440.0,111430.0,0.17948487]
[1761309788908,0.68684656,111440.0,111410.0,0.27831195]
[1761309789112,0.68684656,111440.0,111430.0,0.17948487]
[1761309789579,0.00014567,111440.0,111430.0,0.89981224]
[1761309789781,0.00014567,111440.0,111430.0,0.57558382]
[1761309790914,0.00014567,111440.0,111430.0,0.26930388]
[1761309791287,0.00014567,111440.0,111430.0,0.61710394]
[1761309793193,0.00014567,111440.0,111430.0,0.95710394]
[1761309794965,1e-08,111440.0,111430.0,1.35062066]
[1761309795199,1e-08,111440.0,111430.0,1.32790398]
[1761309795431,1e-08,111440.0,111430.0,0.98010392]
[1761309795681,1e-08,111440.0,111430.0,0.97010393]
[1761309796544,1e-08,111440.0,111430.0,3.32690398]
[1761309796766,1e-08,111440.0,111430.0,0.61130388]
[1761309796972,1e-08,111440.0,111430.0,0.95910394]
[1761309797386,1e-08,111440.0,111430.0,0.95710394]
[1761309797604,1e-08,111440.0,111430.0,0.96210394]
[1761309797821,1e-08,111440.0,111430.0,0.95710394]
[1761309798034,1e-08,111440.0,111430.0,0.95910394]
[1761309798292,1e-08,111440.0,111430.0,0.96410394]
[1761309799167,1e-08,111440.0,111430.0,0.61630388]
[1761309799385,1e-08,111440.0,111430.0,0.27630388]
[1761309799806,1e-08,111440.0,111430.0,0.62410394]
[1761309800017,1e-08,111440.0,111430.0,0.27630388]
[1761309800446,1e-08,111440.0,111430.0,0.61910394]
[1761309800871,1e-08,111440.0,111430.0,0.62110394]
[1761309801084,1e-08,111440.0,111430.0,0.61910394]
[1761309801275,1e-08,111440.0,111430.0,0.62110394]
[1761309801715,1e-08,111440.0,111430.0,0.61910394]
[1761309801914,1e-08,111440.0,111430.0,0.95910394]
[1761309802098,1e-08,111440.0,111430.0,0.96010394]
[1761309802344,1e-08,111440.0,111430.0,0.9870339]
[1761309805916,1e-08,111440.0,111430.0,3.34483395]
[1761309806133,1e-08,111440.0,111430.0,3.35483394]
[1761309808603,1e-08,111440.0,111430.0,3.37855062]
[1761309808814,0.00375465,111470.0,111460.0,0.17943656]
[1761309809019,0.00375465,111470.0,111460.0,0.97302328]
[1761309809226,0.00375465,111470.0,111460.0,0.95705563]
[1761309809654,0.00375465,111470.0,111460.0,0.61301022]
[1761309810086,0.00375465,111470.0,111460.0,0.96081028]
[1761309810287,0.00375465,111470.0,111460.0,0.96281028]
[1761309810849,0.00375465,111470.0,111460.0,1.23557191]
[1761309811259,0.00375465,111470.0,111460.0,1.23657191]
[1761309811820,0.00375465,111470.0,111460.0,1.22779656]
[1761309814675,0.00375465,111470.0,111460.0,1.22404191]
[1761309817832,0.00375465,111470.0,111460.0,1.23306497]
[1761309818651,0.00375465,111470.0,111460.0,1.53895814]
[1761309819261,0.00375465,111470.0,111460.0,1.54271279]
[1761309821794,0.00375465,111470.0,111460.0,1.55271278]
[1761309822647,0.00375465,111470.0,111460.0,1.23681962]
[1761309823527,0.00375465,111470.0,111460.0,1.23306497]
[1761309823732,0.00375465,111470.0,111460.0,0.62127863]
[1761309823943,0.00375465,111470.0,111460.0,1.23306497]
[1761309825689,0.00375465,111470.0,111460.0,0.27225557]
[1761309825890,0.00375465,111470.0,111460.0,0.57814874]
[1761309826736,0.00375465,111470.0,111460.0,0.88404191]
[1761309830425,0.00375465,111470.0,111460.0,0.18243656]
[1761309831119,0.00375465,111470.0,111460.0,0.48832973]
[1761309833452,0.00375465,111470.0,111460.0,0.7942229]
[1761309833779,0.00375465,111470.0,111460.0,0.48832973]
[1761309834608,0.00375465,111470.0,111460.0,0.18243656]
[1761309834812,0.00375465,111470.0,111460.0,0.48832973]
[1761309835037,0.00375465,111470.0,111460.0,0.18243656]
[1761309835459,0.00375465,111470.0,111460.0,0.48832973]
[1761309837889,0.00375465,111470.0,111460.0,0.18243656]
[1761309838287,0.00375465,111470.0,111460.0,0.48832973]
[1761309839105,0.00375465,111470.0,111460.0,0.18243656]
[1761309839330,0.00375465,111470.0,111460.0,0.48832973]
[1761309840063,0.00375465,111470.0,111460.0,0.18243656]
[1761309840274,0.00375465,111470.0,111460.0,0.48832973]
[1761309840685,0.00375465,111470.0,111460.0,0.18243656]
[1761309841091,0.00375465,111470.0,111460.0,0.48832973]
[1761309841296,0.00375465,111470.0,111460.0,0.18243656]
[1761309844051,0.18317512,111470.0,111460.0,0.003]
[1761309844234,0.65410829,111470.0,111460.0,0.18243656]
[1761309844418,0.35734047,111470.0,111460.0,0.18243656]
[1761309845017,0.35734047,111470.0,111460.0,0.003]
[1761309845448,0.17942047,111470.0,111460.0,0.002]
[1761309845808,0.35722047,111470.0,111460.0,0.18243656]
[1761309846187,0.17942047,111470.0,111460.0,0.18243656]
[1761309846375,0.17942047,111470.0,111450.0,0.17945232]
[1761309846614,0.17942047,111470.0,111460.0,0.18243656]
[1761309846814,0.17942047,111470.0,111460.0,0.003]
[1761309846943,0.17942047,111470.0,111460.0,0.18043656]
[1761309847150,0.17942047,111470.0,111460.0,0.18143656]
[1761309848532,0.17942047,111470.0,111460.0,0.18043656]
[1761309848792,0.55291131,111490.0,111460.0,0.18043656]
[1761309848984,0.34,111480.0,111470.0,0.17941174]
[1761309849189,0.51940437,111480.0,111470.0,0.17942047]
[1761309849606,0.00054549,111490.0,111480.0,0.17940437]
[1761309849794,0.00054549,111490.0,111480.0,0.48539919]
[1761309850849,0.00054549,111490.0,111480.0,0.88121302]
[1761309851059,0.00254549,111490.0,111480.0,0.88121302]
[1761309851269,0.00054549,111490.0,111480.0,0.88121302]
[1761309852138,0.0004,111500.0,111490.0,0.17938828]
[1761309852365,0.0004,111500.0,111490.0,0.59314093]
[1761309852580,0.0004,111500.0,111490.0,0.57520211]
[1761309853206,1e-08,111500.0,111490.0,0.91520211]
[1761309853629,1e-08,111500.0,111490.0,1.23119692]
[1761309853952,1e-08,111500.0,111490.0,1.23319692]
[1761309854154,1e-08,111510.0,111500.0,0.51937219]
[1761309854367,1e-08,111510.0,111500.0,1.24118082]
[1761309854778,4.848e-05,111510.0,111500.0,1.16261491]
[1761309854995,1e-08,111510.0,111500.0,1.16261491]
[1761309855250,1e-08,111520.0,111510.0,0.51935611]
[1761309855442,1e-08,111520.0,111510.0,1.14259885]
[1761309855843,1e-08,111520.0,111510.0,0.60917512]
[1761309856803,1e-08,111520.0,111510.0,0.61017512]
[1761309856994,1e-08,111520.0,111510.0,0.61117512]
[1761309858801,1e-08,111520.0,111510.0,0.62117511]
[1761309860224,1e-08,111520.0,111510.0,0.62476299]
[1761309860426,1e-08,111520.0,111510.0,0.63476298]
[1761309861656,1e-08,111520.0,111510.0,0.62476299]
[1761309862436,1e-08,111520.0,111510.0,0.63476298]
[1761309863417,1e-08,111520.0,111510.0,0.62476299]
[1761309863634,1e-08,111530.0,111520.0,0.18934001]
[1761309863846,1e-08,111530.0,111520.0,0.48915901]
[1761309864477,1e-08,111530.0,111520.0,1.01258275]
[1761309864886,1e-08,111530.0,111520.0,0.80258276]
[1761309865105,1e-08,111530.0,111520.0,0.81239402]
[1761309866225,1e-08,111530.0,111520.0,0.81439402]
[1761309866934,1e-08,111530.0,111520.0,0.27215903]
[1761309867139,1e-08,111530.0,111520.0,0.18234002]
[1761309868363,1e-08,111530.0,111520.0,0.18134002]
[1761309868588,1e-08,111530.0,111520.0,0.18234002]
[1761309868989,1e-08,111530.0,111520.0,0.17934002]
[1761309869400,0.00033737,111530.0,111520.0,0.18234002]
[1761309869579,0.00033737,111530.0,111520.0,0.18034002]
[1761309869966,0.00033737,111530.0,111520.0,0.18134002]
[1761309870803,0.17966131,111530.0,111520.0,0.18134002]
[1761309871006,0.00033737,111530.0,111520.0,0.18134002]
[1761309880398,0.00033737,111530.0,111520.0,0.48698532]
[1761309880846,0.00033737,111530.0,111520.0,0.18134002]
[1761309882515,0.00033737,111530.0,111520.0,0.48698532]
[1761309883011,0.00033737,111530.0,111520.0,0.18134002]
[1761309883491,0.00033737,111530.0,111520.0,0.48698532]
[1761309883913,0.00033737,111530.0,111520.0,0.18134002]
[1761309885668,0.00033737,111530.0,111520.0,0.48698532]
[1761309886354,0.00033737,111530.0,111520.0,0.91680433]
[1761309887235,0.0004,111540.0,111530.0,0.17932394]
[1761309887449,0.0004,111540.0,111530.0,0.59272064]
[1761309887664,0.0004,111540.0,111530.0,0.57478825]
[1761309887876,0.00073732,111540.0,111530.0,0.57478825]
[1761309888084,0.00073732,111540.0,111530.0,0.26914295]
[1761309888318,0.00073732,111540.0,111530.0,0.57478825]
[1761309889195,0.00073732,111540.0,111530.0,0.57778825]
[1761309889637,0.00073732,111540.0,111530.0,0.57678825]
[1761309890086,0.00073732,111540.0,111530.0,0.57778825]
[1761309891243,0.00073732,111540.0,111530.0,0.27214295]
[1761309891466,0.00073732,111540.0,111530.0,0.57778825]
[1761309892388,0.00073732,111540.0,111530.0,0.88343355]
[1761309893307,0.00073732,111540.0,111530.0,0.94917466]
[1761309893734,0.00073732,111540.0,111530.0,2.94917466]
[1761309895571,0.0004,111560.0,111550.0,0.48493709]
[1761309895823,0.00088512,111560.0,111550.0,0.6091108]
[1761309896050,0.00088512,111560.0,111550.0,0.9147561]
[1761309896910,0.00088512,111560.0,111550.0,0.9167561]
[1761309897841,0.00088512,111560.0,111550.0,0.48693709]
[1761309898057,0.00088512,111560.0,111550.0,0.18129179]
[1761309898270,0.00088512,111560.0,111550.0,0.48693709]
[1761309898727,0.00088512,111560.0,111550.0,0.5767561]
[1761309899693,0.00088512,111560.0,111550.0,0.2711108]
[1761309899935,0.00088512,111560.0,111550.0,0.5767561]
[1761309901152,0.00155959,111560.0,111550.0,0.5767561]
[1761309901572,0.00155959,111560.0,111550.0,0.2711108]
[1761309901773,0.00155959,111560.0,111550.0,0.5767561]
[1761309902325,0.00155959,111560.0,111550.0,0.18129179]
[1761309902532,0.48648061,111560.0,111550.0,0.002]
[1761309902747,0.57629962,111560.0,111550.0,0.002]
[1761309903536,0.75081962,111560.0,111550.0,0.002]
[1761309904173,0.44517432,111560.0,111550.0,0.18129179]
[1761309904405,0.44517432,111560.0,111550.0,0.18029179]
[1761309904683,0.44517432,111560.0,111550.0,0.18129179]
[1761309904929,0.44517432,111560.0,111550.0,0.001]
[1761309904930,0.35535531,111560.0,111550.0,0.001]
[1761309905153,0.18083531,111560.0,111550.0,0.17929179]
[1761309905368,0.18183531,111560.0,111550.0,0.17929179]
[1761309905584,0.18183531,111560.0,111550.0,0.18029179]
[1761309906278,0.18183531,111560.0,111550.0,0.80351189]
[1761309906279,0.00255959,111560.0,111550.0,0.80351189]
[1761309906506,0.00255959,111560.0,111550.0,0.2701108]
[1761309906949,0.00255959,111560.0,111550.0,0.61713443]
[1761309907612,0.00255959,111560.0,111550.0,0.2701108]
[1761309907839,0.00255959,111560.0,111550.0,0.61713443]
[1761309909958,1e-08,111560.0,111550.0,0.95713443]
[1761309919318,1e-08,111560.0,111550.0,0.18029179]
[1761309925462,0.17927573,111560.0,111550.0,0.18029179]
[1761309925688,0.52629936,111560.0,111550.0,0.001]
[1761309925863,0.52629936,111560.0,111550.0,0.18029179]
[1761309926091,0.35263573,111560.0,111550.0,0.18029179]
[1761309926275,0.35263573,111560.0,111550.0,0.001]
[1761309926900,0.35263573,111560.0,111550.0,0.18029179]
[1761309927512,0.35263573,111560.0,111550.0,0.001]
[1761309927934,0.69965936,111560.0,111550.0,0.001]
[1761309928157,0.35263573,111560.0,111550.0,0.001]
[1761309928320,0.35263573,111560.0,111550.0,0.18029179]
[1761309928519,0.17336001,111560.0,111550.0,0.18029179]
[1761309928743,1e-08,111560.0,111550.0,0.18029179]
[1761309929031,0.17328001,111560.0,111550.0,0.18029179]
[1761309932331,1e-08,111560.0,111550.0,0.18029179]
[1761309941064,0.17927573,111560.0,111550.0,0.001]
[1761309941271,0.17268001,111560.0,111550.0,0.18029179]
[1761309941924,1e-08,111560.0,111550.0,0.18029179]
[1761309942725,1e-08,111560.0,111550.0,0.48573242]
[1761309943588,1e-08,111560.0,111550.0,0.18029179]
[1761309943825,0.17927573,111560.0,111550.0,0.18029179]
[1761309944045,1e-08,111560.0,111550.0,0.18029179]
[1761309945148,0.17927573,111560.0,111550.0,0.18029179]
[1761309945352,0.48471636,111560.0,111550.0,0.18029179]
[1761309945899,0.48471636,111560.0,111550.0,0.001]
[1761309946417,0.90837798,111560.0,111550.0,0.001]
[1761309946623,1.23313351,111560.0,111550.0,0.001]
[1761309947100,1.54473153,111560.0,111550.0,0.001]
[1761309947274,1.58091381,111560.0,111550.0,0.001]
[1761309947445,1.29954176,111560.0,111550.0,0.001]
[1761309947905,0.16901379,111530.0,111510.0,0.18832391]
[1761309948189,0.17934002,111520.0,111500.0,0.49378142]
[1761309948352,0.48478065,111520.0,111510.0,0.17935611]
[1761309948763,0.17934002,111520.0,111510.0,0.17935611]
[1761309948966,0.17934002,111520.0,111510.0,0.18035611]
[1761309949175,0.68877243,111530.0,111510.0,0.18035611]
[1761309949376,0.34137379,111530.0,111510.0,0.18084123]
[1761309950018,0.35168394,111530.0,111520.0,0.17934002]
[1761309951199,0.17236,111530.0,111520.0,0.17934002]
[1761309951421,0.17236,111530.0,111520.0,0.18034002]
[1761309952441,0.35156394,111530.0,111520.0,0.18034002]
[1761309952642,0.17224,111530.0,111520.0,0.18034002]
[1761309956570,0.63316346,111560.0,111540.0,0.17930787]
[1761309956784,0.4411108,111550.0,111540.0,0.17930787]
[1761309956988,0.46039918,111550.0,111540.0,0.17930787]
[1761309958263,0.23576332,111570.0,111550.0,0.17927604]
[1761309958442,0.46066308,111570.0,111560.0,0.17927572]
[1761309958912,0.28140099,111570.0,111560.0,0.17927572]
[1761309959122,0.46066064,111570.0,111560.0,0.17927572]
[1761309959542,0.46080605,111570.0,111560.0,0.17927572]
[1761309959949,0.80480605,111570.0,111560.0,0.17927572]
[1761309960351,0.80080605,111570.0,111560.0,0.17927572]
[1761309960568,0.81499672,111570.0,111560.0,0.17927572]
[1761309961223,0.80280605,111570.0,111560.0,0.17927572]
[1761309961678,0.34248259,111570.0,111560.0,0.17927572]
[1761309961851,0.51428259,111570.0,111560.0,0.17927572]
[1761309962804,0.00248259,111570.0,111560.0,0.17927572]
[1761309963046,0.00248259,111570.0,111560.0,0.18624363]
[1761309963275,0.00248259,111570.0,111560.0,0.61649337]
[1761309963925,0.00048259,111570.0,111560.0,0.61649337]
[1761309964129,0.00148259,111570.0,111560.0,0.61649337]
[1761309964333,0.00148259,111570.0,111560.0,0.26909473]
[1761309964893,0.00148259,111570.0,111560.0,0.17927572]
[1761309965096,0.17312259,111570.0,111560.0,0.17927572]
[1761309965295,0.76975745,111570.0,111550.0,0.22927604]
[1761309965466,1.10875745,111570.0,111560.0,0.17927572]
[1761309965665,1.19857646,111570.0,111550.0,0.22927604]
[1761309965866,0.85117782,111570.0,111550.0,0.22927604]
[1761309966074,1.19857646,111570.0,111550.0,0.22927604]
[1761309966274,1.19857646,111570.0,111560.0,0.001]
[1761309966478,1.19857646,111570.0,111560.0,0.18027572]
[1761309966676,0.6019416,111570.0,111560.0,0.17927572]
[1761309966883,0.78120125,111570.0,111560.0,0.17927572]
[1761309967123,0.78116125,111570.0,111560.0,0.17927572]
[1761309967274,0.69134224,111570.0,111560.0,0.17927572]
[1761309967657,0.69130224,111570.0,111560.0,0.17927572]
[1761309969208,0.17927572,111560.0,111530.0,0.1882756]
[1761309969409,0.17930787,111540.0,111530.0,0.17930941]
[1761309969614,0.97401162,111550.0,111530.0,0.17930941]
[1761309970018,0.17930891,111540.0,111530.0,0.17932377]
[1761309970218,0.97401162,111550.0,111530.0,0.17932377]
[1761309970473,0.17930787,111540.0,111530.0,0.17932377]
[1761309970677,0.17930787,111540.0,111530.0,0.18032377]
[1761309971106,0.17930787,111540.0,111530.0,0.17932377]
[1761309971334,0.17930787,111540.0,111530.0,0.001]
[1761309971566,0.26912688,111540.0,111530.0,0.18032394]
[1761309972020,0.26912688,111540.0,111530.0,0.001]
[1761309972215,0.26912688,111540.0,111530.0,0.18032394]
[1761309972894,0.26912688,111540.0,111530.0,0.18232394]
[1761309973150,0.26912688,111540.0,111530.0,0.17932394]
[1761309973634,0.26912688,111540.0,111530.0,0.18032394]
[1761309974050,0.26912688,111540.0,111530.0,0.17932394]
[1761309974250,0.26912688,111540.0,111530.0,0.18032394]
[1761309976437,0.35363319,111540.0,111530.0,0.001]
[1761309977095,0.17930787,111540.0,111530.0,0.18032394]
[1761309978049,0.17930787,111540.0,111530.0,0.001]
[1761309978271,0.80246717,111540.0,111530.0,0.001]
[1761309978489,1.14246717,111540.0,111530.0,0.001]
[1761309978731,1.17864945,111540.0,111530.0,0.001]
[1761309978944,1.28774767,111540.0,111530.0,0.001]
[1761309979505,0.17934002,111520.0,111510.0,0.17935162]
[1761309979825,0.35046002,111520.0,111510.0,0.17935611]
[1761309980661,0.35046002,111520.0,111510.0,0.17984123]
[1761309981066,0.35046002,111520.0,111510.0,0.18084123]
[1761309981296,0.35046002,111520.0,111510.0,0.18184123]
[1761309981704,0.40656017,111520.0,111510.0,0.18184123]
[1761309981946,0.35046002,111520.0,111510.0,0.18184123]
[1761309982121,0.35046002,111520.0,111510.0,0.00248512]
[1761309982321,0.35046002,111520.0,111510.0,0.18184123]
[1761309982572,1.3498016,111520.0,111510.0,0.00248512]
[1761309982791,1.48296048,111520.0,111510.0,0.00248512]
[1761309983205,1.4588919,111520.0,111510.0,0.00148512]
[1761309983409,1.4588919,111520.0,111510.0,0.00048512]
[1761309983615,1.4588919,111520.0,111510.0,0.00148512]
[1761309984045,0.17942047,111470.0,111460.0,0.00375194]
[1761309984254,1.41422108,111470.0,111460.0,0.00380041]
[1761309985357,1.3780388,111470.0,111460.0,0.00380041]
[1761309985568,1.41422108,111470.0,111460.0,0.00380041]
[1761309985781,0.88088079,111470.0,111460.0,0.00380041]
[1761309985985,1.41422108,111470.0,111460.0,0.00580041]
[1761309986408,1.41422108,111470.0,111430.0,0.0002]
[1761309986633,1.05280906,111440.0,111430.0,0.00034549]
[1761309986880,0.78012778,111440.0,111430.0,0.00034549]
[1761309987168,0.17084,111440.0,111430.0,0.17983036]
[1761309987372,0.35030877,111440.0,111430.0,0.00034549]
[1761309987786,0.35030877,111440.0,111430.0,0.17983036]
[1761309987996,0.17084,111440.0,111430.0,0.17983036]
[1761309988439,0.17084,111440.0,111430.0,0.18083036]
[1761309989063,0.17284,111440.0,111430.0,0.18083036]
[1761309989485,0.35230877,111440.0,111430.0,0.18083036]
[1761309989696,0.17284,111440.0,111430.0,0.18083036]
[1761309989908,0.17284,111440.0,111430.0,0.17983036]
[1761309990113,0.35230877,111440.0,111430.0,0.17983036]
[1761309990321,0.35230877,111440.0,111430.0,0.00034549]
[1761309990753,0.44212778,111440.0,111430.0,0.00034549]
[1761309992252,0.44212778,111440.0,111430.0,0.0013588]
[1761309992458,0.78212778,111440.0,111430.0,0.0013588]
[1761309992666,1.31546807,111440.0,111430.0,0.0013588]
[1761309993107,1.31546807,111440.0,111430.0,0.18084367]
[1761309993331,1.40528708,111440.0,111430.0,0.18084367]
[1761309993775,0.87194679,111440.0,111430.0,0.18084367]
[1761309994012,0.69247802,111440.0,111430.0,0.18084367]
[1761309994230,0.51284,111440.0,111430.0,0.18084367]
[1761309994441,0.342,111440.0,111430.0,0.18084367]
[1761309994654,0.002,111440.0,111430.0,0.18084367]
[1761309995343,0.002,111440.0,111430.0,0.80400297]
[1761309995766,0.002,111440.0,111430.0,0.83093388]
[1761309996223,0.002,111440.0,111430.0,1.17093388]
[1761309996891,0.48816,111480.0,111470.0,0.17942047]
[1761309997107,0.17941644,111500.0,111480.0,0.17940437]
[1761309997319,0.34990828,111490.0,111480.0,0.17940437]
[1761309997540,0.17052,111490.0,111480.0,0.17940437]
[1761309997747,0.51052,111490.0,111480.0,0.17940437]
[1761309998188,0.42515889,111510.0,111490.0,0.17938828]
[1761309998399,0.17348,111500.0,111490.0,0.17938828]
[1761309998615,0.17348,111500.0,111490.0,0.1973271]
[1761309998616,0.003,111500.0,111490.0,0.1973271]
[1761309998848,0.73670956,111540.0,111520.0,0.17933228]
[1761309998849,0.17048,111530.0,111520.0,0.17933228]
[1761309999060,0.26078386,111530.0,111520.0,0.17933228]
[1761309999271,0.4401078,111530.0,111520.0,0.17933228]
[1761309999484,0.26078386,111530.0,111520.0,0.17933228]
[1761309999707,0.4401078,111530.0,111520.0,0.17933228]
[1761309999917,0.09030386,111530.0,111520.0,0.17933228]
[1761310000329,0.17980879,111530.0,111520.0,0.17933228]
[1761310000804,0.00348485,111530.0,111520.0,0.17933228]
[1761310001432,0.00448485,111530.0,111520.0,0.17933228]
[1761310001635,0.00148485,111530.0,111520.0,0.17933228]
[1761310001841,0.00248485,111530.0,111520.0,0.17933228]
[1761310002059,0.00248485,111530.0,111520.0,0.19726628]
[1761310002274,0.00248485,111530.0,111520.0,0.19113996]
[1761310002482,0.00248485,111530.0,111520.0,0.17933228]
[1761310003725,0.00048485,111530.0,111520.0,0.17933228]
[1761310004008,0.97328809,111530.0,111510.0,0.17933588]
[1761310004189,0.53176681,111530.0,111510.0,0.17933588]
[1761310004434,0.53176681,111530.0,111520.0,0.17934002]
[1761310004651,0.53176681,111530.0,111510.0,0.17933588]
[1761310004865,0.53076681,111530.0,111510.0,0.17933588]